[Event "*** SCC Grand Prix: Titled Tuesday Blitz"]
[Site "Chess.com"]
[Date "2020.07.14"]
[Round "7"]
[White "JoliyRoger"]
[Black "eightbyeightchess"]
[Result "0-1"]
[WhiteElo "2268"]
[BlackElo "2407"]
[TimeControl "180+1"]
[EndTime "11:20:55 PDT"]
[Termination "eightbyeightchess won by resignation"]

1. Nf3 {[%clk 0:03:00.9]} 1... d5 {[%clk 0:03:00]} 2. c4 {[%clk 0:03:00.4]} 2...
c6 {[%clk 0:02:58.1]} 3. e3 {[%clk 0:03:00.1]} 3... Nf6 {[%clk 0:02:58.1]} 4. b3
{[%clk 0:03:00.4]} 4... Bg4 {[%clk 0:02:56.1]} 5. Bb2 {[%clk 0:03:00.8]} 5... e6
{[%clk 0:02:56.2]} 6. d4 {[%clk 0:03:01.3]} 6... Bb4+ {[%clk 0:02:53.3]} 7. Bc3
{[%clk 0:02:59.1]} 7... Bxc3+ {[%clk 0:02:51.3]} 8. Nxc3 {[%clk 0:02:59.6]} 8...
O-O {[%clk 0:02:51.1]} 9. Be2 {[%clk 0:02:54.5]} 9... Nbd7 {[%clk 0:02:48.1]}
10. O-O {[%clk 0:02:53.9]} 10... Re8 {[%clk 0:02:45.9]} 11. Rc1 {[%clk
0:02:53.8]} 11... Qa5 {[%clk 0:02:40.2]} 12. Qc2 {[%clk 0:02:49]} 12... Bf5
{[%clk 0:02:31.8]} 13. Qb2 {[%clk 0:02:49.1]} 13... h6 {[%clk 0:02:25.7]} 14. a3
{[%clk 0:02:49.2]} 14... Ne4 {[%clk 0:02:15]} 15. h3 {[%clk 0:02:23.6]} 15...
Nxc3 {[%clk 0:02:04.8]} 16. Rxc3 {[%clk 0:02:21.5]} 16... Nf6 {[%clk 0:02:03.1]}
17. b4 {[%clk 0:02:17.4]} 17... Qb6 {[%clk 0:02:00]} 18. c5 {[%clk 0:02:16.5]}
18... Qc7 {[%clk 0:01:59.7]} 19. b5 {[%clk 0:02:14.6]} 19... Ne4 {[%clk
0:01:58.9]} 20. Rb3 {[%clk 0:02:14.4]} 20... Qe7 {[%clk 0:01:41.3]} 21. bxc6
{[%clk 0:02:08.7]} 21... bxc6 {[%clk 0:01:42.2]} 22. Ne5 {[%clk 0:02:08.9]}
22... Qh4 {[%clk 0:01:33.2]} 23. Nf3 {[%clk 0:02:02.7]} 23... Qf6 {[%clk
0:01:30.9]} 24. Rb7 {[%clk 0:01:46.5]} 24... g5 {[%clk 0:01:29.6]} 25. Ne5
{[%clk 0:01:44.4]} 25... Bg6 {[%clk 0:01:14.7]} 26. f4 {[%clk 0:01:32.1]} 26...
Rf8 {[%clk 0:00:54.1]} 27. Rf3 {[%clk 0:01:07.1]} 27... Bh5 {[%clk 0:00:44.6]}
28. g4 {[%clk 0:01:04.8]} 28... Bg6 {[%clk 0:00:44.6]} 29. Nxc6 {[%clk
0:01:04.2]} 29... gxf4 {[%clk 0:00:41.2]} 30. exf4 {[%clk 0:00:56.4]} 30... Kh8
{[%clk 0:00:29.7]} 31. Bf1 {[%clk 0:00:50.5]} 31... Rac8 {[%clk 0:00:22.5]} 32.
Ne5 {[%clk 0:00:48.5]} 32... h5 {[%clk 0:00:15.6]} 33. Qh2 {[%clk 0:00:38]}
33... Bh7 {[%clk 0:00:14.4]} 34. Bd3 {[%clk 0:00:25.2]} 34... h4 {[%clk
0:00:12.5]} 35. Qe2 {[%clk 0:00:17.9]} 35... Ng3 {[%clk 0:00:11.7]} 36. Qe1
{[%clk 0:00:17.3]} 36... Bxd3 {[%clk 0:00:10.9]} 37. Rxd3 {[%clk 0:00:16.4]}
37... Qxf4 {[%clk 0:00:10]} 38. Qf2 {[%clk 0:00:15.8]} 38... Qxf2+ {[%clk
0:00:08]} 39. Kxf2 {[%clk 0:00:15.7]} 39... Kg7 {[%clk 0:00:08.2]} 40. Rf3
{[%clk 0:00:14.3]} 40... Ne4+ {[%clk 0:00:07.6]} 41. Ke1 {[%clk 0:00:13.3]}
41... Ng5 {[%clk 0:00:08.2]} 42. Rc3 {[%clk 0:00:12.6]} 42... Ne4 {[%clk
0:00:06.7]} 43. Re3 {[%clk 0:00:11.9]} 43... Rb8 {[%clk 0:00:06.8]} 44. c6
{[%clk 0:00:12.1]} 44... Rxb7 {[%clk 0:00:06.6]} 45. cxb7 {[%clk 0:00:12.6]}
45... Nd6 {[%clk 0:00:06.6]} 46. Rb3 {[%clk 0:00:12.2]} 46... Rb8 {[%clk
0:00:07]} 47. Nc6 {[%clk 0:00:10.7]} 47... Rxb7 {[%clk 0:00:07.2]} 48. Rxb7
{[%clk 0:00:11.3]} 48... Nxb7 {[%clk 0:00:08.1]} 49. Nxa7 {[%clk 0:00:12]} 49...
f6 {[%clk 0:00:06.9]} 50. Nc6 {[%clk 0:00:12.3]} 50... f5 {[%clk 0:00:06.1]} 51.
gxf5 {[%clk 0:00:11.8]} 51... exf5 {[%clk 0:00:07]} 52. a4 {[%clk 0:00:12.4]}
52... Kf6 {[%clk 0:00:06.8]} 53. a5 {[%clk 0:00:12.9]} 53... f4 {[%clk
0:00:06.5]} 54. a6 {[%clk 0:00:13.4]} 54... Nd6 {[%clk 0:00:06.2]} 55. a7 {[%clk
0:00:13.4]} 55... Kf5 {[%clk 0:00:06.1]} 56. a8=Q {[%clk 0:00:13.2]} 56... Ke4
{[%clk 0:00:07]} 57. Qe8+ {[%clk 0:00:12.8]} 57... Nxe8 {[%clk 0:00:06.8]} 58.
Kf2 {[%clk 0:00:12.1]} 58... Ng7 {[%clk 0:00:06.3]} 59. Kg2 {[%clk 0:00:10.8]}
59... Nf5 {[%clk 0:00:06.6]} 60. Kh2 {[%clk 0:00:11.4]} 60... Nxd4 {[%clk
0:00:05.6]} 61. Ne7 {[%clk 0:00:12.3]} 61... Nf3+ {[%clk 0:00:05.5]} 62. Kg2
{[%clk 0:00:12]} 62... Ne5 {[%clk 0:00:05.7]} 63. Ng6 {[%clk 0:00:11.8]} 63...
Nxg6 {[%clk 0:00:05.6]} 0-1

[Event "*** SCC Grand Prix: Titled Tuesday Blitz"]
[Site "Chess.com"]
[Date "2020.07.14"]
[Round "7"]
[White "shav3184"]
[Black "turayev_shahruh17"]
[Result "1-0"]
[WhiteElo "2306"]
[BlackElo "2450"]
[TimeControl "180+1"]
[EndTime "11:21:00 PDT"]
[Termination "shav3184 won by checkmate"]

1. e4 {[%clk 0:03:00.9]} 1... d5 {[%clk 0:03:00.2]} 2. exd5 {[%clk 0:03:00.4]}
2... Qxd5 {[%clk 0:03:01.1]} 3. d4 {[%clk 0:02:56.4]} 3... Nc6 {[%clk
0:03:00.9]} 4. Nf3 {[%clk 0:02:28.4]} 4... Bg4 {[%clk 0:03:01.1]} 5. Be2 {[%clk
0:02:18.5]} 5... O-O-O {[%clk 0:03:01.4]} 6. c4 {[%clk 0:02:10.5]} 6... Qh5
{[%clk 0:03:00]} 7. Be3 {[%clk 0:01:48.1]} 7... Nf6 {[%clk 0:02:56.1]} 8. Nbd2
{[%clk 0:01:41.2]} 8... e6 {[%clk 0:02:37.8]} 9. h3 {[%clk 0:01:33.7]} 9... Bb4
{[%clk 0:02:37.4]} 10. O-O {[%clk 0:01:24.3]} 10... Bxd2 {[%clk 0:02:17.8]} 11.
hxg4 {[%clk 0:01:14.3]} 11... Nxg4 {[%clk 0:02:18.7]} 12. Qxd2 {[%clk
0:01:14.9]} 12... Nce5 {[%clk 0:02:18]} 13. Bf4 {[%clk 0:01:07]} 13... Ng6
{[%clk 0:02:10.8]} 14. Bg3 {[%clk 0:01:04.4]} 14... f5 {[%clk 0:02:09.2]} 15.
Qg5 {[%clk 0:00:54]} 15... Qxg5 {[%clk 0:01:59.3]} 16. Nxg5 {[%clk 0:00:54.1]}
16... Rhe8 {[%clk 0:01:53.3]} 17. Bxg4 {[%clk 0:00:52.2]} 17... fxg4 {[%clk
0:01:52.9]} 18. Rad1 {[%clk 0:00:51.4]} 18... h5 {[%clk 0:01:48.1]} 19. Rfe1
{[%clk 0:00:48.4]} 19... h4 {[%clk 0:01:47.5]} 20. Be5 {[%clk 0:00:48.3]} 20...
Rd7 {[%clk 0:01:45.4]} 21. Re4 {[%clk 0:00:34.6]} 21... h3 {[%clk 0:01:28.3]}
22. gxh3 {[%clk 0:00:29.7]} 22... gxh3 {[%clk 0:01:28.3]} 23. Nxh3 {[%clk
0:00:29.7]} 23... b6 {[%clk 0:01:23.2]} 24. Rde1 {[%clk 0:00:26.9]} 24... Kb7
{[%clk 0:01:19.2]} 25. Ng5 {[%clk 0:00:24.5]} 25... a6 {[%clk 0:01:12.8]} 26.
Bg3 {[%clk 0:00:23.8]} 26... e5 {[%clk 0:00:49.9]} 27. d5 {[%clk 0:00:21.6]}
27... b5 {[%clk 0:00:47.7]} 28. b3 {[%clk 0:00:20.6]} 28... Rf8 {[%clk
0:00:34.6]} 29. Ne6 {[%clk 0:00:20]} 29... Rf3 {[%clk 0:00:34.9]} 30. Bxe5
{[%clk 0:00:19.8]} 30... Re7 {[%clk 0:00:31.3]} 31. Bg3 {[%clk 0:00:19.6]} 31...
Kc8 {[%clk 0:00:29.7]} 32. Kg2 {[%clk 0:00:20]} 32... Rc3 {[%clk 0:00:28.9]} 33.
Nd4 {[%clk 0:00:20.5]} 33... Rf7 {[%clk 0:00:24.8]} 34. Ne6 {[%clk 0:00:19.5]}
34... Rc2 {[%clk 0:00:23.8]} 35. Nc5 {[%clk 0:00:19.5]} 35... Kb8 {[%clk
0:00:18.7]} 36. Re8+ {[%clk 0:00:20.4]} 36... Ka7 {[%clk 0:00:18.6]} 37. Ne4
{[%clk 0:00:20.7]} 37... bxc4 {[%clk 0:00:17.8]} 38. bxc4 {[%clk 0:00:21.6]}
38... Rxc4 {[%clk 0:00:18.4]} 39. d6 {[%clk 0:00:22]} 39... Ra4 {[%clk
0:00:15.4]} 40. dxc7 {[%clk 0:00:21.2]} 40... Nf4+ {[%clk 0:00:15.8]} 41. Bxf4
{[%clk 0:00:20.7]} 41... Rc4 {[%clk 0:00:16.7]} 42. c8=Q {[%clk 0:00:20.3]}
42... Rxc8 {[%clk 0:00:17.6]} 43. Rxc8 {[%clk 0:00:21.2]} 43... Rxf4 {[%clk
0:00:18.5]} 44. f3 {[%clk 0:00:22.1]} 44... Kb6 {[%clk 0:00:18.5]} 45. Rd8
{[%clk 0:00:23]} 45... Ka5 {[%clk 0:00:18.6]} 46. Rd6 {[%clk 0:00:23.9]} 46...
g5 {[%clk 0:00:18.2]} 47. Red1 {[%clk 0:00:24.8]} 47... g4 {[%clk 0:00:18.4]}
48. R1d5+ {[%clk 0:00:25.7]} 48... Kb4 {[%clk 0:00:18.9]} 49. Rb6+ {[%clk
0:00:25.6]} 49... Kc4 {[%clk 0:00:18.6]} 50. Rc5+ {[%clk 0:00:25.9]} 50... Kd4
{[%clk 0:00:18.9]} 51. Rd6+ {[%clk 0:00:26.5]} 51... Ke3 {[%clk 0:00:19.2]} 52.
Rc3+ {[%clk 0:00:26.6]} 52... Ke2 {[%clk 0:00:19.6]} 53. Rd2+ {[%clk 0:00:27.5]}
53... Ke1 {[%clk 0:00:20.2]} 54. Rc1# {[%clk 0:00:28.4]} 1-0

[Event "*** SCC Grand Prix: Titled Tuesday Blitz"]
[Site "Chess.com"]
[Date "2020.07.14"]
[Round "7"]
[White "hongnhung1234"]
[Black "ljuks68"]
[Result "0-1"]
[WhiteElo "2254"]
[BlackElo "2452"]
[TimeControl "180+1"]
[EndTime "11:21:05 PDT"]
[Termination "ljuks68 won by checkmate"]

1. e4 {[%clk 0:03:00.9]} 1... e6 {[%clk 0:02:59.8]} 2. d4 {[%clk 0:03:00.5]}
2... d5 {[%clk 0:03:00.2]} 3. Nc3 {[%clk 0:03:01]} 3... Bb4 {[%clk 0:02:59.7]}
4. e5 {[%clk 0:03:00.5]} 4... Ne7 {[%clk 0:02:59.9]} 5. a3 {[%clk 0:02:59.3]}
5... Bxc3+ {[%clk 0:03:00.1]} 6. bxc3 {[%clk 0:03:00.2]} 6... c5 {[%clk
0:03:00.4]} 7. Qg4 {[%clk 0:03:00.3]} 7... Qc7 {[%clk 0:03:00]} 8. Qxg7 {[%clk
0:03:00.3]} 8... Rg8 {[%clk 0:03:00.3]} 9. Qxh7 {[%clk 0:03:00.8]} 9... cxd4
{[%clk 0:03:00.8]} 10. Ne2 {[%clk 0:03:00.5]} 10... Nbc6 {[%clk 0:03:00.6]} 11.
f4 {[%clk 0:02:58.6]} 11... Bd7 {[%clk 0:03:00.9]} 12. Qd3 {[%clk 0:02:58.6]}
12... dxc3 {[%clk 0:03:00.2]} 13. Qxc3 {[%clk 0:02:59.5]} 13... Nf5 {[%clk
0:02:59.2]} 14. Rg1 {[%clk 0:02:56]} 14... d4 {[%clk 0:02:36.7]} 15. Qd3 {[%clk
0:02:54.3]} 15... O-O-O {[%clk 0:02:36.2]} 16. g4 {[%clk 0:02:53.2]} 16... Nh4
{[%clk 0:02:36.3]} 17. Rg3 {[%clk 0:02:51.3]} 17... Kb8 {[%clk 0:02:34.4]} 18.
Rb1 {[%clk 0:02:49.9]} 18... Ka8 {[%clk 0:02:34]} 19. a4 {[%clk 0:02:47.3]}
19... Na5 {[%clk 0:02:25.7]} 20. Nxd4 {[%clk 0:02:39.2]} 20... Bxa4 {[%clk
0:02:23.7]} 21. c3 {[%clk 0:02:37.1]} 21... Nc6 {[%clk 0:02:00.4]} 22. Ba3
{[%clk 0:02:20.4]} 22... Nxd4 {[%clk 0:01:55.6]} 23. cxd4 {[%clk 0:02:21.3]}
23... Bc6 {[%clk 0:01:53]} 24. Bd6 {[%clk 0:02:17]} 24... Qa5+ {[%clk
0:01:51.8]} 25. Bb4 {[%clk 0:02:04.8]} 25... Qd5 {[%clk 0:01:49.1]} 26. Bd6
{[%clk 0:01:25.8]} 26... Nf3+ {[%clk 0:01:21.8]} 27. Rxf3 {[%clk 0:01:24.9]}
27... Qxf3 {[%clk 0:01:20.3]} 28. Qxf3 {[%clk 0:01:25.2]} 28... Bxf3 {[%clk
0:01:20.1]} 29. h3 {[%clk 0:01:25.5]} 29... Rc8 {[%clk 0:01:17]} 30. Kf2 {[%clk
0:01:19]} 30... Bd5 {[%clk 0:01:14]} 31. Bd3 {[%clk 0:01:16.2]} 31... Rc3 {[%clk
0:01:07.9]} 32. Ke2 {[%clk 0:01:15.2]} 32... Rh8 {[%clk 0:01:07.2]} 33. Bb4
{[%clk 0:00:54.7]} 33... Rcc8 {[%clk 0:01:01.8]} 34. Bc5 {[%clk 0:00:40.7]}
34... Rxh3 {[%clk 0:00:59.2]} 35. Ra1 {[%clk 0:00:37.2]} 35... Rh2+ {[%clk
0:00:49.7]} 36. Ke3 {[%clk 0:00:35.2]} 36... Ra2 {[%clk 0:00:37.5]} 37. Rxa2
{[%clk 0:00:26.5]} 37... Bxa2 {[%clk 0:00:36.9]} 38. f5 {[%clk 0:00:26.8]} 38...
Bd5 {[%clk 0:00:34.8]} 39. fxe6 {[%clk 0:00:25]} 39... fxe6 {[%clk 0:00:33.9]}
40. g5 {[%clk 0:00:24.4]} 40... b6 {[%clk 0:00:33.6]} 41. Bd6 {[%clk 0:00:20.2]}
41... Rh8 {[%clk 0:00:28.4]} 42. g6 {[%clk 0:00:19.7]} 42... Rh3+ {[%clk
0:00:28.6]} 43. Kd2 {[%clk 0:00:19.3]} 43... Rg3 {[%clk 0:00:26.9]} 44. Bf8
{[%clk 0:00:18.1]} 44... Bc6 {[%clk 0:00:20.9]} 45. g7 {[%clk 0:00:17.4]} 45...
Be8 {[%clk 0:00:21]} 46. Bd6 {[%clk 0:00:14.1]} 46... a5 {[%clk 0:00:18.6]} 47.
d5 {[%clk 0:00:13.3]} 47... Rxg7 {[%clk 0:00:15.9]} 48. dxe6 {[%clk 0:00:13.5]}
48... Kb7 {[%clk 0:00:13.8]} 49. Be4+ {[%clk 0:00:13.3]} 49... Bc6 {[%clk
0:00:12.5]} 50. Kc3 {[%clk 0:00:14.2]} 50... Bxe4 {[%clk 0:00:11.9]} 51. Kd4
{[%clk 0:00:14.5]} 51... Bc6 {[%clk 0:00:11.7]} 52. e7 {[%clk 0:00:14.5]} 52...
Rg8 {[%clk 0:00:11.3]} 53. e6 {[%clk 0:00:14.4]} 53... Be8 {[%clk 0:00:10.6]}
54. Ke5 {[%clk 0:00:14.7]} 54... Rg5+ {[%clk 0:00:10.2]} 55. Kf6 {[%clk
0:00:15.2]} 55... Rg2 {[%clk 0:00:10.2]} 56. Bf4 {[%clk 0:00:14.5]} 56... a4
{[%clk 0:00:08.7]} 57. Bd6 {[%clk 0:00:13.7]} 57... Kc6 {[%clk 0:00:07.6]} 58.
Be5 {[%clk 0:00:13.4]} 58... a3 {[%clk 0:00:07.4]} 59. Ba1 {[%clk 0:00:12.3]}
59... a2 {[%clk 0:00:07.5]} 60. Be5 {[%clk 0:00:11.9]} 60... Rg1 {[%clk
0:00:07.5]} 61. Ba1 {[%clk 0:00:10]} 61... Rxa1 {[%clk 0:00:06.5]} 62. Kg7
{[%clk 0:00:10.9]} 62... Rf1 {[%clk 0:00:06.6]} 63. Kg8 {[%clk 0:00:10.9]} 63...
a1=Q {[%clk 0:00:07.5]} 64. Kh7 {[%clk 0:00:11.2]} 64... Qf6 {[%clk 0:00:07.4]}
65. Kg8 {[%clk 0:00:11.3]} 65... Qg6+ {[%clk 0:00:07.8]} 66. Kh8 {[%clk
0:00:11.2]} 66... Rh1# {[%clk 0:00:08.7]} 0-1

[Event "*** SCC Grand Prix: Titled Tuesday Blitz"]
[Site "Chess.com"]
[Date "2020.07.14"]
[Round "7"]
[White "giantslayer83"]
[Black "TimKett"]
[Result "1/2-1/2"]
[WhiteElo "2720"]
[BlackElo "2165"]
[TimeControl "180+1"]
[EndTime "11:21:06 PDT"]
[Termination "Game drawn - insufficient material"]

1. c4 {[%clk 0:03:00.9]} 1... e6 {[%clk 0:02:59.5]} 2. Nc3 {[%clk 0:03:00.5]}
2... d5 {[%clk 0:02:59.5]} 3. cxd5 {[%clk 0:03:00]} 3... exd5 {[%clk 0:02:59.7]}
4. d4 {[%clk 0:03:00.9]} 4... c5 {[%clk 0:02:59.9]} 5. Nf3 {[%clk 0:02:59.9]}
5... Nc6 {[%clk 0:02:59.7]} 6. g3 {[%clk 0:03:00.1]} 6... Nf6 {[%clk 0:02:59.5]}
7. Bg2 {[%clk 0:02:59.7]} 7... cxd4 {[%clk 0:02:59.4]} 8. Nxd4 {[%clk
0:02:59.3]} 8... Bc5 {[%clk 0:02:59.9]} 9. Nb3 {[%clk 0:02:59.1]} 9... Bb6
{[%clk 0:02:59.4]} 10. Nxd5 {[%clk 0:02:57.1]} 10... Be6 {[%clk 0:02:58.7]} 11.
Nxf6+ {[%clk 0:02:41.1]} 11... Qxf6 {[%clk 0:02:55.3]} 12. O-O {[%clk 0:02:42]}
12... O-O {[%clk 0:02:47.4]} 13. e3 {[%clk 0:02:19.4]} 13... Ne5 {[%clk
0:02:37.1]} 14. Nd4 {[%clk 0:01:55.4]} 14... Bc4 {[%clk 0:02:31.6]} 15. Re1
{[%clk 0:01:53.9]} 15... Nd3 {[%clk 0:02:31.1]} 16. Re2 {[%clk 0:01:47.8]} 16...
Nxc1 {[%clk 0:02:29.5]} 17. Rxc1 {[%clk 0:01:33]} 17... Bxe2 {[%clk 0:02:26.8]}
18. Nxe2 {[%clk 0:01:33.9]} 18... Qxb2 {[%clk 0:02:11]} 19. Bxb7 {[%clk
0:01:19.6]} 19... Rad8 {[%clk 0:02:08.8]} 20. Qf1 {[%clk 0:01:16.2]} 20... Qxa2
{[%clk 0:01:46.8]} 21. Nc3 {[%clk 0:01:12.9]} 21... Qb2 {[%clk 0:01:29.3]} 22.
Ba6 {[%clk 0:00:59.9]} 22... Rd2 {[%clk 0:01:21.8]} 23. Ne4 {[%clk 0:00:59]}
23... Rc2 {[%clk 0:01:16.6]} 24. Rb1 {[%clk 0:00:57.7]} 24... Qe5 {[%clk
0:01:12]} 25. Qd3 {[%clk 0:00:48.4]} 25... Rb2 {[%clk 0:00:59.9]} 26. Rxb2
{[%clk 0:00:42.1]} 26... Qxb2 {[%clk 0:00:58.9]} 27. Ng5 {[%clk 0:00:42.3]}
27... g6 {[%clk 0:00:56.3]} 28. Bc4 {[%clk 0:00:40.1]} 28... Qf6 {[%clk
0:00:51.7]} 29. h4 {[%clk 0:00:38.8]} 29... h5 {[%clk 0:00:38.4]} 30. Kg2 {[%clk
0:00:33.4]} 30... Kg7 {[%clk 0:00:38.2]} 31. Qd7 {[%clk 0:00:30.6]} 31... a5
{[%clk 0:00:29.3]} 32. Ne6+ {[%clk 0:00:27]} 32... Kg8 {[%clk 0:00:26]} 33. Nxf8
{[%clk 0:00:26.6]} 33... Kxf8 {[%clk 0:00:26]} 34. Bd5 {[%clk 0:00:26.4]} 34...
Kg7 {[%clk 0:00:25.7]} 35. Bc4 {[%clk 0:00:19.6]} 35... Bc5 {[%clk 0:00:23.9]}
36. Qd5 {[%clk 0:00:16.6]} 36... Bb4 {[%clk 0:00:22.6]} 37. Bb3 {[%clk
0:00:16.2]} 37... Bc3 {[%clk 0:00:18.1]} 38. e4 {[%clk 0:00:15.9]} 38... Kf8
{[%clk 0:00:13.6]} 39. f4 {[%clk 0:00:15.2]} 39... Kg7 {[%clk 0:00:12.5]} 40.
Qc4 {[%clk 0:00:11.3]} 40... Bb4 {[%clk 0:00:10]} 41. Kh3 {[%clk 0:00:10.6]}
41... Qe6+ {[%clk 0:00:08.8]} 42. Qxe6 {[%clk 0:00:10.1]} 42... fxe6 {[%clk
0:00:09.2]} 43. Bxe6 {[%clk 0:00:11]} 43... Kf6 {[%clk 0:00:09.6]} 44. Bb3
{[%clk 0:00:10.8]} 44... Bc5 {[%clk 0:00:09.3]} 45. Kg2 {[%clk 0:00:10.8]} 45...
Bb4 {[%clk 0:00:09.2]} 46. Kf3 {[%clk 0:00:11.2]} 46... Bc5 {[%clk 0:00:09.1]}
47. e5+ {[%clk 0:00:10.7]} 47... Ke7 {[%clk 0:00:08.3]} 48. f5 {[%clk
0:00:08.6]} 48... gxf5 {[%clk 0:00:07.4]} 49. Kf4 {[%clk 0:00:08.9]} 49... Bf2
{[%clk 0:00:07.6]} 50. Bd1 {[%clk 0:00:08.6]} 50... Ke6 {[%clk 0:00:03.5]} 51.
Bxh5 {[%clk 0:00:06.6]} 51... Bd4 {[%clk 0:00:03.6]} 52. Bg6 {[%clk 0:00:02.2]}
52... Bxe5+ {[%clk 0:00:03.4]} 53. Kg5 {[%clk 0:00:02.7]} 53... Bxg3 {[%clk
0:00:03.4]} 54. Bxf5+ {[%clk 0:00:03.1]} 54... Ke5 {[%clk 0:00:03.3]} 55. h5
{[%clk 0:00:04]} 55... Bf4+ {[%clk 0:00:03.4]} 56. Kg6 {[%clk 0:00:04.5]} 56...
Be3 {[%clk 0:00:03.5]} 57. Bd7 {[%clk 0:00:04.4]} 57... Kd4 {[%clk 0:00:03.4]}
58. Kg7 {[%clk 0:00:03.8]} 58... Kc3 {[%clk 0:00:03.8]} 59. Kg6 {[%clk
0:00:04.1]} 59... Kb4 {[%clk 0:00:03.5]} 60. h6 {[%clk 0:00:04.5]} 60... Bxh6
{[%clk 0:00:03.6]} 61. Kxh6 {[%clk 0:00:05.4]} 61... a4 {[%clk 0:00:04.1]} 62.
Bxa4 {[%clk 0:00:05.5]} 1/2-1/2

[Event "*** SCC Grand Prix: Titled Tuesday Blitz"]
[Site "Chess.com"]
[Date "2020.07.14"]
[Round "7"]
[White "Sueetin"]
[Black "CzechmVIII"]
[Result "1/2-1/2"]
[WhiteElo "2330"]
[BlackElo "2198"]
[TimeControl "180+1"]
[EndTime "11:21:06 PDT"]
[Termination "Game drawn by repetition"]

1. d4 {[%clk 0:03:00.9]} 1... Nf6 {[%clk 0:02:59.9]} 2. c4 {[%clk 0:03:00.8]}
2... c5 {[%clk 0:03:00]} 3. d5 {[%clk 0:03:00.8]} 3... e6 {[%clk 0:03:00.5]} 4.
Nc3 {[%clk 0:03:00.7]} 4... exd5 {[%clk 0:03:00.9]} 5. cxd5 {[%clk 0:03:01.6]}
5... d6 {[%clk 0:03:01.4]} 6. Nf3 {[%clk 0:03:02.1]} 6... g6 {[%clk 0:03:00]} 7.
Bf4 {[%clk 0:03:03]} 7... a6 {[%clk 0:02:59.3]} 8. a4 {[%clk 0:03:02.5]} 8...
Bg7 {[%clk 0:02:55.6]} 9. e3 {[%clk 0:03:02.7]} 9... Bg4 {[%clk 0:02:50.7]} 10.
Be2 {[%clk 0:03:00.9]} 10... Bxf3 {[%clk 0:02:49.5]} 11. Bxf3 {[%clk 0:03:01]}
11... O-O {[%clk 0:02:49.6]} 12. O-O {[%clk 0:03:00.9]} 12... Qe7 {[%clk
0:02:48]} 13. Re1 {[%clk 0:03:00]} 13... Nbd7 {[%clk 0:02:45.4]} 14. h3 {[%clk
0:02:52.1]} 14... Rab8 {[%clk 0:02:40.8]} 15. Be2 {[%clk 0:02:51.8]} 15... Rfe8
{[%clk 0:02:20.3]} 16. Bf1 {[%clk 0:02:51.3]} 16... h5 {[%clk 0:02:14.6]} 17. a5
{[%clk 0:02:50.4]} 17... Nh7 {[%clk 0:02:06.4]} 18. Ra4 {[%clk 0:02:49.3]} 18...
g5 {[%clk 0:01:59.4]} 19. Bh2 {[%clk 0:02:48.9]} 19... Nhf6 {[%clk 0:01:38.1]}
20. Bd3 {[%clk 0:02:40.1]} 20... g4 {[%clk 0:01:26.4]} 21. hxg4 {[%clk
0:02:23.5]} 21... hxg4 {[%clk 0:01:27.3]} 22. Bf5 {[%clk 0:02:11.2]} 22... Ne5
{[%clk 0:01:24.6]} 23. Bf4 {[%clk 0:01:58.7]} 23... b5 {[%clk 0:01:18]} 24. axb6
{[%clk 0:01:57.8]} 24... Rxb6 {[%clk 0:01:18.2]} 25. Qc2 {[%clk 0:01:20.6]}
25... Reb8 {[%clk 0:01:15.3]} 26. Ra2 {[%clk 0:01:20.4]} 26... Nfd7 {[%clk
0:00:48.9]} 27. g3 {[%clk 0:01:15.4]} 27... Nf3+ {[%clk 0:00:45.9]} 28. Kf1
{[%clk 0:01:13.7]} 28... Nxe1 {[%clk 0:00:41.7]} 29. Kxe1 {[%clk 0:01:14.6]}
29... Ne5 {[%clk 0:00:41]} 30. Bxe5 {[%clk 0:01:12]} 30... Qxe5 {[%clk
0:00:34.6]} 31. Bxg4 {[%clk 0:01:11.2]} 31... Rxb2 {[%clk 0:00:19.3]} 32. Rxb2
{[%clk 0:00:57.1]} 32... Qxc3+ {[%clk 0:00:19.3]} 33. Kf1 {[%clk 0:00:57.1]}
33... Qxb2 {[%clk 0:00:18.5]} 34. Qa4 {[%clk 0:00:52.1]} 34... Qb1+ {[%clk
0:00:17.8]} 35. Kg2 {[%clk 0:00:51.3]} 35... Qb5 {[%clk 0:00:17.8]} 36. Qf4
{[%clk 0:00:48.7]} 36... Qd3 {[%clk 0:00:14.6]} 37. Bf5 {[%clk 0:00:47.2]} 37...
Qxd5+ {[%clk 0:00:13.9]} 38. e4 {[%clk 0:00:47.3]} 38... Qe5 {[%clk 0:00:14]}
39. Qh4 {[%clk 0:00:47.2]} 39... Kf8 {[%clk 0:00:11.9]} 40. Kh3 {[%clk
0:00:36.1]} 40... d5 {[%clk 0:00:11.8]} 41. f4 {[%clk 0:00:35.7]} 41... Qf6
{[%clk 0:00:11.4]} 42. Qg4 {[%clk 0:00:34.6]} 42... dxe4 {[%clk 0:00:11]} 43.
Bxe4 {[%clk 0:00:34.4]} 43... Qh6+ {[%clk 0:00:11.1]} 44. Kg2 {[%clk 0:00:34.7]}
44... Qf6 {[%clk 0:00:11.2]} 45. Qd7 {[%clk 0:00:34.1]} 45... Rd8 {[%clk
0:00:10.7]} 46. Qb7 {[%clk 0:00:31.8]} 46... Rd2+ {[%clk 0:00:10.4]} 47. Kf3
{[%clk 0:00:32.2]} 47... Rd8 {[%clk 0:00:09.6]} 48. Bc6 {[%clk 0:00:25.5]} 48...
Qc3+ {[%clk 0:00:08.9]} 49. Kg4 {[%clk 0:00:25.4]} 49... Qf6 {[%clk 0:00:08.9]}
50. Qc7 {[%clk 0:00:24.2]} 50... Qe7 {[%clk 0:00:07.5]} 51. Qb6 {[%clk
0:00:20.5]} 51... Qe6+ {[%clk 0:00:06.9]} 52. Kf3 {[%clk 0:00:18.9]} 52... Rd6
{[%clk 0:00:06.1]} 53. Qb8+ {[%clk 0:00:18.1]} 53... Ke7 {[%clk 0:00:06]} 54.
Qe8+ {[%clk 0:00:16]} 54... Kf6 {[%clk 0:00:05.4]} 55. Qb8 {[%clk 0:00:09.6]}
55... Rxc6 {[%clk 0:00:04.7]} 56. g4 {[%clk 0:00:10]} 56... Qd5+ {[%clk
0:00:04.2]} 57. Kg3 {[%clk 0:00:10.2]} 57... Qd3+ {[%clk 0:00:04.3]} 58. Kh4
{[%clk 0:00:10.5]} 58... Ke7 {[%clk 0:00:02]} 59. Qb7+ {[%clk 0:00:09.4]} 59...
Qd7 {[%clk 0:00:02.1]} 60. Qb1 {[%clk 0:00:08.8]} 60... Rh6+ {[%clk 0:00:02.6]}
61. Kg3 {[%clk 0:00:08.2]} 61... Re6 {[%clk 0:00:03.5]} 62. f5 {[%clk
0:00:07.8]} 62... Re5 {[%clk 0:00:03.3]} 63. Qb6 {[%clk 0:00:06.5]} 63... Qd4
{[%clk 0:00:03.1]} 64. Qc7+ {[%clk 0:00:06]} 64... Qd7 {[%clk 0:00:03.4]} 65.
Qb6 {[%clk 0:00:05.5]} 65... Qd4 {[%clk 0:00:03.2]} 66. Qc7+ {[%clk 0:00:05.2]}
66... Qd7 {[%clk 0:00:03.7]} 67. Qb6 {[%clk 0:00:05.5]} 1/2-1/2